bitfinex/quotes_BTCUSD_20250508
["timestamp","ask_amount","ask_price","bid_price","bid_amount"]
[1746719063671,0.73556435,101470.0,101460.0,0.01063949]
[1746719063876,0.73556435,101470.0,101460.0,0.2176176]
[1746719064075,0.13023133,101470.0,101460.0,0.24718492]
[1746719064287,0.32979871,101470.0,101460.0,0.2176176]
[1746719064509,0.31747966,101470.0,101460.0,0.01063949]
[1746719064664,0.33277966,101470.0,101460.0,0.01063949]
[1746719064885,0.33377966,101470.0,101460.0,0.01063949]
[1746719065077,0.5353166,101470.0,101460.0,0.03035139]
[1746719065241,0.13323161,101470.0,101460.0,0.2274735]
[1746719065447,0.33279855,101470.0,101460.0,0.2176176]
[1746719065665,0.33279855,101470.0,101460.0,0.24718463]
[1746719065666,0.11352136,101470.0,101460.0,0.24718463]
[1746719065924,0.14555001,101470.0,101460.0,0.24718463]
[1746719066135,0.13569517,101470.0,101460.0,0.24718463]
[1746719066346,0.14555029,101470.0,101460.0,0.24718463]
[1746719066549,0.78664868,101470.0,101460.0,0.01063949]
[1746719066737,0.78418444,101470.0,101460.0,0.01063949]
[1746719067165,0.79872529,101470.0,101460.0,0.01063949]
[1746719067372,0.01971267,101450.0,101420.0,0.09482271]
[1746719067579,0.31754329,101440.0,101430.0,0.21689785]
[1746719067794,0.31754329,101440.0,101420.0,0.00047123]
[1746719067795,0.21689805,101430.0,101420.0,0.00047123]
[1746719067969,0.31756497,101430.0,101420.0,0.20753088]
[1746719068209,0.13024298,101430.0,101420.0,0.22725036]
[1746719068419,0.3274234,101430.0,101420.0,0.21739067]
[1746719068634,0.77196331,101430.0,101420.0,0.00047123]
[1746719068836,0.70964616,101430.0,101420.0,0.00347123]
[1746719069052,0.70964616,101430.0,101420.0,0.01333121]
[1746719069256,0.30770625,101430.0,101420.0,0.21739086]
[1746719069460,0.30770625,101430.0,101420.0,0.21053097]
[1746719069665,0.30770625,101430.0,101420.0,0.00347123]
[1746719069865,0.70964616,101430.0,101420.0,0.00347123]
[1746719070073,0.75905869,101430.0,101420.0,0.00347123]
[1746719070252,0.61888034,101410.0,101400.0,0.01]
[1746719070456,0.66760735,101410.0,101400.0,0.01]
[1746719070658,1.13474726,101410.0,101400.0,0.01]
[1746719070867,1.15458811,101410.0,101400.0,0.01]
[1746719071079,1.30525503,101410.0,101400.0,0.01]
[1746719071248,0.67280735,101410.0,101400.0,0.01]
[1746719071451,1.08474726,101410.0,101400.0,0.01]
[1746719071658,0.31760735,101410.0,101400.0,0.01]
[1746719071850,0.74584726,101410.0,101400.0,0.012]
[1746719072051,0.12038815,101410.0,101400.0,0.012]
[1746719072256,0.72201313,101410.0,101400.0,0.012]
[1746719072459,0.75948811,101410.0,101400.0,0.012]
[1746719072870,0.74494726,101410.0,101400.0,0.012]
[1746719073158,0.79948811,101410.0,101400.0,0.012]
[1746719073365,1.20478811,101410.0,101400.0,0.012]
[1746719073568,0.7975482,101410.0,101400.0,0.012]
[1746719073828,1.18494726,101410.0,101400.0,0.012]
[1746719074024,0.65760735,101410.0,101400.0,0.012]
[1746719074249,1.16954726,101410.0,101400.0,0.012]
[1746719074468,1.08978811,101410.0,101400.0,0.012]
[1746719074681,0.00986514,101360.0,101350.0,0.25162245]
[1746719074891,0.10313363,101360.0,101350.0,0.3147989]
[1746719075098,0.00246685,101370.0,101360.0,0.22691278]
[1746719075315,0.23917467,101390.0,101380.0,0.19727756]
[1746719075516,0.009863,101380.0,101370.0,0.24277329]
[1746719075647,0.33737489,101390.0,101380.0,0.19727756]
[1746719075853,0.41130616,101390.0,101380.0,0.19727756]
[1746719076061,0.12086275,101390.0,101380.0,0.21700482]
[1746719076277,0.13072546,101390.0,101380.0,0.21700492]
[1746719076482,0.31812125,101390.0,101380.0,0.19727756]
[1746719076715,0.02959025,101380.0,101370.0,0.20714437]
[1746719076887,0.0004709,101390.0,101370.0,0.28608391]
[1746719077087,0.14058786,101390.0,101380.0,0.22686849]
[1746719077273,0.23673151,101380.0,101370.0,0.19729703]
[1746719077486,0.23673151,101380.0,101370.0,0.20716168]
[1746719077487,0.3373992,101380.0,101370.0,0.20716168]
[1746719077715,0.10066692,101380.0,101370.0,0.23675486]
[1746719078386,0.01973057,101360.0,101350.0,0.63164329]
[1746719078582,0.10066692,101360.0,101350.0,0.23587619]
[1746719078781,0.11053206,101360.0,101350.0,0.22601008]
[1746719078978,0.11053206,101360.0,101350.0,0.2457424]
[1746719078979,0.12286429,101360.0,101350.0,0.2457424]
[1746719079183,0.12286429,101360.0,101350.0,0.22601008]
[1746719079383,0.01973251,101350.0,101340.0,0.21250258]
[1746719079678,0.02960214,101340.0,101330.0,0.21712777]
[1746719079905,0.12039963,101350.0,101340.0,0.207223]
[1746719080368,0.00986718,101340.0,101330.0,0.22699573]
[1746719080583,0.12286898,101340.0,101330.0,0.01]
[1746719080804,0.10066692,101340.0,101330.0,0.25357996]
[1746719081028,0.001,101340.0,101330.0,0.24971093]
[1746719081303,0.01086709,101340.0,101330.0,0.22324326]
[1746719081545,0.10166692,101340.0,101330.0,0.24897996]
[1746719081780,0.11153391,101340.0,101330.0,0.24897996]
[1746719081991,0.10166692,101340.0,101330.0,0.24897996]
[1746719082215,0.001,101340.0,101330.0,0.26467996]
[1746719082443,0.001,101340.0,101330.0,0.24494346]
[1746719082667,0.001,101340.0,101330.0,0.26467987]
[1746719082910,0.14113604,101340.0,101330.0,0.04173699]
[1746719083124,0.3187572,101340.0,101330.0,0.22924355]
[1746719083360,0.12040119,101340.0,101330.0,0.016]
[1746719083585,0.00047061,101350.0,101340.0,0.22695757]
[1746719083847,0.13073606,101350.0,101340.0,0.22695776]
[1746719084070,0.13073606,101350.0,101340.0,0.22695757]
[1746719084283,0.15046955,101350.0,101340.0,0.22695757]
[1746719084508,0.12086966,101350.0,101340.0,0.22695757]
[1746719084730,0.00047061,101350.0,101340.0,0.24215757]
[1746719084952,0.00047061,101350.0,101340.0,0.24615757]
[1746719085597,0.13073616,101350.0,101340.0,0.24615757]
[1746719085803,0.00047061,101350.0,101340.0,0.24615757]
[1746719086214,0.00047061,101350.0,101340.0,0.26195757]
[1746719087140,0.00047061,101350.0,101340.0,0.7645644]
[1746719087664,0.00047061,101350.0,101340.0,1.1045644]
[1746719087890,0.00047061,101350.0,101340.0,0.70262449]
[1746719088144,0.00047061,101350.0,101340.0,0.70062449]
[1746719088380,0.00047061,101350.0,101340.0,1.1005644]
[1746719088604,0.00047061,101350.0,101340.0,1.5065644]
[1746719088825,0.00047061,101350.0,101340.0,1.09862449]
[1746719089278,0.01000069,101380.0,101370.0,0.25749041]
[1746719089780,0.01000069,101380.0,101370.0,0.76009724]
[1746719089991,0.01000069,101380.0,101370.0,0.75815733]
[1746719090643,0.01000069,101380.0,101370.0,0.74295733]
[1746719090885,0.01200069,101380.0,101370.0,0.74295733]
[1746719091094,0.01000069,101380.0,101370.0,0.63089041]
[1746719091302,0.01000069,101380.0,101370.0,0.64709041]
[1746719091763,0.01000069,101380.0,101370.0,0.74775733]
[1746719091992,0.01000069,101380.0,101370.0,0.76425733]
[1746719092625,0.01000069,101380.0,101370.0,1.16619724]
[1746719092855,0.01000069,101380.0,101370.0,0.64709041]
[1746719093293,0.22947108,101380.0,101370.0,0.61116178]
[1746719093522,0.01000069,101380.0,101370.0,0.23089041]
[1746719094605,0.11066761,101380.0,101370.0,0.21116178]
[1746719094876,0.13286046,101380.0,101370.0,0.23089041]
[1746719095111,0.1205308,101380.0,101370.0,0.23089041]
[1746719095351,0.01000069,101380.0,101370.0,0.64843032]
[1746719095588,0.01000069,101380.0,101370.0,0.24649041]
[1746719096534,0.01000069,101380.0,101370.0,0.66403032]
[1746719096772,0.01000069,101380.0,101370.0,0.26209041]
[1746719096999,0.01000069,101380.0,101370.0,0.76469724]
[1746719097480,0.01000069,101380.0,101370.0,0.77086682]
[1746719097691,0.01000069,101380.0,101370.0,0.77970478]
[1746719097897,0.01000069,101380.0,101370.0,0.37776487]
[1746719098111,0.01000069,101380.0,101370.0,0.77970478]
[1746719098334,0.01000069,101380.0,101370.0,0.37776487]
[1746719098543,0.01000069,101380.0,101370.0,0.24589795]
[1746719098752,0.01000069,101380.0,101370.0,0.23089041]
[1746719099264,0.01246676,101380.0,101370.0,0.23089041]
[1746719099485,0.01000069,101380.0,101370.0,0.23089041]
[1746719100559,0.01000069,101380.0,101370.0,0.76489724]
[1746719101048,0.01000069,101380.0,101370.0,0.77106601]
[1746719101299,0.01000069,101380.0,101370.0,1.21336917]
[1746719101536,0.69421177,101460.0,101450.0,0.22671148]
[1746719101537,0.03403409,101460.0,101450.0,0.22671148]
[1746719101749,0.21052127,101470.0,101460.0,0.22668914]
[1746719101967,0.23023045,101470.0,101460.0,0.22668914]
[1746719102190,0.22037571,101470.0,101460.0,0.22668914]
[1746719102416,0.41747908,101470.0,101460.0,0.00616877]
[1746719102645,0.01971131,101460.0,101450.0,0.64273683]
[1746719102864,0.33721273,101460.0,101450.0,0.40616877]
[1746719103116,0.21687627,101440.0,101430.0,0.00616877]
[1746719103338,0.37736758,101460.0,101450.0,0.21685451]
[1746719103339,0.12037862,101460.0,101450.0,0.21685451]
[1746719103560,0.12037862,101460.0,101440.0,0.60701824]
[1746719103561,0.31750064,101460.0,101440.0,0.60701824]
[1746719103779,0.20946283,101450.0,101440.0,0.4]
[1746719103999,0.29780836,101450.0,101430.0,0.22306653]
[1746719104225,0.33725869,101440.0,101430.0,0.22306662]
[1746719104449,0.31754358,101440.0,101430.0,0.00616877]
[1746719104679,0.32348574,101440.0,101430.0,0.00616877]
[1746719104894,0.72542565,101440.0,101430.0,0.00616877]
[1746719105120,0.32348574,101440.0,101430.0,0.00985882]
[1746719105355,0.13618203,101440.0,101430.0,0.22675618]
[1746719105585,0.31754329,101440.0,101430.0,0.20803933]
[1746719105814,0.12038213,101440.0,101430.0,0.21689805]
[1746719106033,0.02957966,101420.0,101400.0,0.2070442]
[1746719106259,0.10066692,101420.0,101410.0,0.23666107]
[1746719106496,0.04190029,101430.0,101420.0,0.21691944]
[1746719106738,0.13024289,101430.0,101420.0,0.2230871]
[1746719107023,0.003,101440.0,101430.0,0.23661519]
[1746719107232,0.14309723,101440.0,101430.0,0.22675686]
[1746719107441,0.14309723,101440.0,101430.0,0.00013952]
[1746719107442,0.40721958,101440.0,101430.0,0.00013952]
[1746719107654,1.20078368,101440.0,101430.0,0.00630748]
[1746719107867,1.30078368,101440.0,101430.0,0.00630748]
[1746719108078,0.23191905,101420.0,101410.0,0.01]
[1746719108290,0.73452588,101420.0,101410.0,0.01014034]
[1746719108500,0.72149762,101420.0,101410.0,0.01014034]
[1746719108706,0.67258597,101420.0,101410.0,0.01014034]
[1746719108913,0.72258597,101420.0,101410.0,0.01014034]
[1746719109117,0.73258597,101420.0,101410.0,0.01014034]
[1746719109545,1.13452588,101420.0,101410.0,0.01214034]
[1746719109750,1.13452588,101420.0,101410.0,0.01314034]
[1746719109966,1.07452588,101420.0,101410.0,0.01314034]
[1746719110175,0.66272647,101420.0,101410.0,0.01314034]
[1746719110807,1.06466638,101420.0,101410.0,0.01314034]
[1746719111022,1.14240185,101420.0,101410.0,0.01314034]
[1746719111231,1.10627766,101420.0,101410.0,0.01314034]
[1746719111856,1.2069427,101420.0,101410.0,0.01014034]
[1746719112069,1.1999427,101420.0,101410.0,0.00520658]
[1746719112284,0.21700463,101380.0,101370.0,0.07892271]
[1746719112498,0.21700463,101380.0,101350.0,0.29594076]
[1746719112499,0.01973037,101360.0,101350.0,0.29594076]
[1746719112706,0.10066692,101360.0,101350.0,0.32567995]
[1746719112925,0.31771437,101360.0,101350.0,0.07906308]
[1746719113173,0.31771437,101360.0,101350.0,0.00014037]
[1746719113380,0.12039729,101360.0,101350.0,0.20734303]
[1746719113599,0.32757941,101360.0,101350.0,0.00014037]
[1746719113805,0.31771437,101360.0,101350.0,0.19747633]
[1746719114020,0.33744591,101360.0,101350.0,0.19747633]
[1746719114663,0.12039788,101360.0,101350.0,0.19747633]
[1746719114812,0.1228643,101360.0,101350.0,0.19747633]
[1746719115020,0.14259536,101360.0,101350.0,0.19747633]
[1746719115227,1.15603522,101360.0,101350.0,0.00214037]
[1746719115428,1.07595438,101360.0,101350.0,0.00214037]
[1746719116104,0.10166692,101360.0,101350.0,0.23407554]
[1746719116307,0.10166692,101360.0,101350.0,0.20247633]
[1746719116308,0.45153186,101360.0,101350.0,0.20247633]
[1746719116526,0.10066692,101360.0,101350.0,0.22707544]
[1746719116734,0.34246673,101380.0,101370.0,0.22689041]
[1746719116975,0.01729898,101390.0,101380.0,0.20712437]
[1746719117199,0.10066692,101390.0,101380.0,0.23671482]
[1746719117632,0.10066692,101390.0,101370.0,0.20716168]
[1746719117847,0.0098631,101380.0,101370.0,0.21702633]
[1746719118061,0.11053011,101380.0,101370.0,0.20716178]
[1746719118308,0.13225698,101380.0,101370.0,0.21702624]
[1746719118524,0.14212056,101380.0,101370.0,0.2268906]
[1746719118734,0.3373988,101380.0,101370.0,0.19729703]
[1746719118947,0.66753541,101380.0,101370.0,0.19729703]
[1746719119431,0.00986494,101360.0,101350.0,0.21720943]
[1746719119729,0.13026292,101360.0,101350.0,0.19747633]
[1746719119969,0.32018153,101360.0,101350.0,0.19747633]
[1746719120203,0.34,101370.0,101360.0,0.22691278]
[1746719120460,0.45706692,101380.0,101370.0,0.23675486]
[1746719120461,0.10166692,101380.0,101370.0,0.23675486]
[1746719120705,0.10166692,101380.0,101360.0,0.19731649]
[1746719120706,0.02959308,101370.0,101360.0,0.19731649]
[1746719120946,0.33002484,101370.0,101360.0,0.19731649]
[1746719121188,0.21704794,101360.0,101350.0,0.19747633]
[1746719121435,0.21704794,101360.0,101350.0,0.00014037]
[1746719121436,1.05965477,101360.0,101350.0,0.00014037]
[1746719121662,0.86452263,101360.0,101350.0,0.00214037]
[1746719121897,1.24026254,101360.0,101350.0,0.00214037]
[1746719122162,0.83832263,101360.0,101350.0,0.00214037]
[1746719122392,1.25676254,101360.0,101350.0,0.00014037]
[1746719122621,1.29010912,101360.0,101350.0,0.00014037]
[1746719122854,1.30110912,101360.0,101350.0,0.00014037]
[1746719123081,1.25676254,101360.0,101350.0,0.00014037]
[1746719123327,1.29010912,101360.0,101350.0,0.00014037]
[1746719123539,0.06,101350.0,101330.0,0.01]
[1746719123792,0.10313468,101340.0,101330.0,0.20784552]
[1746719124020,0.46286905,101340.0,101330.0,0.21771407]
[1746719124250,0.46040129,101340.0,101330.0,0.21771426]
[1746719124468,0.48013643,101340.0,101330.0,0.20784552]
[1746719124679,0.64789012,101340.0,101320.0,0.207262]
[1746719124885,0.00986796,101330.0,101320.0,0.21713152]
[1746719125097,0.30790979,101330.0,101320.0,0.19739229]
[1746719125316,0.00986894,101320.0,101310.0,0.23245145]
[1746719125535,0.13027432,101320.0,101310.0,0.24232233]
[1746719125740,0.14014394,101320.0,101310.0,0.21271056]
[1746719125987,0.13027432,101320.0,101310.0,0.22258125]
[1746719126192,0.12040499,101320.0,101310.0,0.24232165]
[1746719126402,0.33753851,101320.0,101310.0,0.21271056]
[1746719126611,0.31780044,101320.0,101310.0,0.21271157]
[1746719126823,0.31780044,101320.0,101310.0,0.21571157]
[1746719127256,0.32766957,101320.0,101310.0,0.0182977]
[1746719127471,1.05974035,101320.0,101310.0,0.0182977]
[1746719127686,1.10126144,101320.0,101310.0,0.0182977]
[1746719127903,1.10126144,101320.0,101310.0,0.21871157]
[1746719127904,0.65780044,101320.0,101310.0,0.21871157]
[1746719128144,0.65780044,101320.0,101310.0,0.0212977]
[1746719128358,1.0742812,101320.0,101310.0,0.0212977]
[1746719128599,1.05974035,101320.0,101310.0,0.21862129]
[1746719128817,0.47027393,101320.0,101310.0,0.24823248]
[1746719129021,0.47027431,101320.0,101310.0,0.22849178]
[1746719129228,0.45053576,101320.0,101310.0,0.24823238]
[1746719129445,0.47027392,101320.0,101310.0,0.23836218]
[1746719129661,0.47027392,101320.0,101310.0,0.02120742]
[1746719129662,1.12749199,101320.0,101310.0,0.02120742]
[1746719129906,1.08988092,101320.0,101310.0,0.02120742]
[1746719130534,0.45053625,101320.0,101310.0,0.21853169]
[1746719130754,0.66766929,101320.0,101310.0,0.21853169]
[1746719131191,0.677539,101320.0,101310.0,0.21853169]
[1746719131396,0.65780064,101320.0,101310.0,0.21853169]
[1746719131815,1.15473248,101320.0,101310.0,0.02111782]
[1746719132033,0.66504131,101320.0,101310.0,0.02111782]
[1746719132650,1.10201883,101320.0,101310.0,0.02111782]
[1746719132889,1.11791883,101320.0,101310.0,0.02111782]
[1746719133491,0.7137454,101320.0,101310.0,0.02111782]
[1746719133716,1.21503105,101320.0,101310.0,0.02111782]
[1746719133896,1.11791883,101320.0,101310.0,0.02111782]
[1746719134115,1.11791883,101320.0,101300.0,0.19949268]
[1746719134116,0.54728436,101310.0,101300.0,0.00206]
[1746719134335,0.95145779,101310.0,101300.0,0.00206]
[1746719134586,0.01974401,101290.0,101280.0,0.20684534]
[1746719134798,0.01974401,101290.0,101270.0,0.22367651]
[1746719134799,0.02961967,101280.0,101270.0,0.22367651]
[1746719135017,0.10066692,101280.0,101270.0,0.25329892]
[1746719135228,0.11053966,101280.0,101270.0,0.25329892]
[1746719135433,0.11053966,101280.0,101270.0,0.21380212]
[1746719135434,0.14262817,101280.0,101270.0,0.21380212]
[1746719135635,0.14262817,101280.0,101270.0,0.233551]
[1746719135872,0.02962191,101270.0,101260.0,0.61719167]
[1746719136089,0.02221653,101270.0,101260.0,0.22706694]
[1746719136296,0.01975005,101260.0,101250.0,0.19828629]
[1746719136499,0.01975005,101260.0,101250.0,0.22316263]
[1746719136500,0.06023312,101260.0,101250.0,0.22316263]
[1746719136706,0.33866153,101260.0,101250.0,0.19834086]
[1746719136913,0.32631707,101260.0,101250.0,0.00081]
[1746719137336,1.07800257,101260.0,101250.0,0.00081]
[1746719137585,1.22866949,101260.0,101250.0,0.00081]
[1746719137765,1.22866949,101260.0,101250.0,0.00181]
[1746719137974,0.82449606,101260.0,101250.0,0.00181]
[1746719138181,1.31648026,101260.0,101250.0,0.00081]
[1746719138404,1.29268026,101260.0,101250.0,0.00081]
[1746719138614,0.01975825,101220.0,101210.0,0.22800465]
[1746719138879,0.10066692,101220.0,101210.0,0.24776524]
[1746719139096,0.34987683,101240.0,101230.0,0.19756989]
[1746719139306,0.68615602,101240.0,101230.0,0.19756989]
[1746719139523,0.01975571,101230.0,101220.0,0.2141894]
[1746719139743,0.23561305,101240.0,101230.0,0.19756989]
[1746719139947,0.31844212,101240.0,101230.0,0.19756989]
[1746719140154,0.13919043,101240.0,101230.0,0.19756989]
[1746719140372,0.11943648,101240.0,101230.0,0.19756989]
[1746719140588,0.01975629,101230.0,101220.0,0.2141894]
[1746719140798,0.12042263,101230.0,101220.0,0.2141894]
[1746719141023,0.05827795,101240.0,101230.0,0.19756989]
[1746719141224,0.12931331,101240.0,101230.0,0.22720428]
[1746719141466,0.01876956,101240.0,101230.0,0.24270419]
[1746719141666,0.01876956,101240.0,101230.0,0.25790419]
[1746719141869,0.00216956,101240.0,101230.0,0.71411196]
[1746719142077,0.00216956,101290.0,101280.0,0.22709202]
[1746719142206,0.00216956,101290.0,101280.0,0.21721909]
[1746719142424,0.00216956,101290.0,101280.0,0.22723239]
[1746719142627,0.00216956,101290.0,101280.0,0.21735946]
[1746719142841,0.03720936,101310.0,101280.0,0.24363239]
[1746719143025,0.02697884,101320.0,101310.0,0.20728446]
[1746719143413,0.00987088,101300.0,101290.0,0.2131358]
[1746719143637,0.00987137,101300.0,101290.0,0.22300805]
[1746719143850,0.31540025,101300.0,101290.0,0.01974499]
[1746719144059,0.01974167,101300.0,101290.0,0.23694214]
[1746719144264,0.23691845,101300.0,101290.0,0.20732549]
[1746719144472,0.23691845,101300.0,101290.0,0.22707018]
[1746719144473,0.02961343,101300.0,101290.0,0.22707018]
[1746719144682,0.02961353,101300.0,101290.0,0.23694233]
[1746719145104,0.02961343,101300.0,101290.0,0.22707028]
[1746719145378,0.03361343,101300.0,101290.0,0.22707008]
[1746719145579,0.01387088,101300.0,101290.0,0.23694204]
[1746719145780,0.04348509,101300.0,101290.0,0.22707018]
[1746719145984,0.004,101300.0,101290.0,0.23694224]
[1746719146197,0.004,101300.0,101290.0,0.25334224]
[1746719146614,0.004,101300.0,101290.0,0.37050916]
[1746719146816,0.004,101300.0,101290.0,0.26984224]
[1746719147022,0.004,101300.0,101290.0,0.27601792]
[1746719147229,0.004,101300.0,101290.0,0.67601792]
[1746719147448,0.002,101300.0,101290.0,0.67601792]
[1746719147657,0.01974011,101310.0,101300.0,0.22704747]
[1746719147861,0.20726644,101320.0,101300.0,0.2270466]
[1746719148075,0.36095954,101320.0,101310.0,0.19741387]
[1746719148284,0.00987079,101300.0,101290.0,0.65264528]
[1746719148481,0.02961071,101310.0,101300.0,0.21348061]
[1746719148694,0.10066692,101320.0,101310.0,0.22702477]
[1746719148908,0.2563976,101330.0,101320.0,0.19739439]
[1746719149157,0.0098704,101310.0,101300.0,0.20730483]
[1746719149403,0.0098704,101310.0,101300.0,0.19743336]
[1746719149404,0.20975239,101310.0,101300.0,0.19743336]
[1746719149639,0.00987088,101300.0,101290.0,0.23187956]
[1746719149881,0.01233892,101300.0,101290.0,0.23187956]
[1746719150101,0.03208157,101300.0,101290.0,0.63201993]
[1746719150339,0.02961343,101300.0,101290.0,0.62584425]
[1746719150563,0.02961353,101300.0,101290.0,0.62584425]
[1746719150782,0.04195314,101300.0,101290.0,0.62584434]
[1746719150998,0.23691846,101300.0,101290.0,0.40014037]
[1746719151237,0.23691846,101300.0,101290.0,0.00214037]
[1746719151238,1.14093946,101300.0,101290.0,0.00214037]
[1746719151683,1.14093946,101300.0,101290.0,0.00314037]
[1746719151901,0.66473138,101300.0,101290.0,0.00314037]
[1746719152147,0.11742586,101300.0,101290.0,0.22920997]
[1746719152361,0.01088806,101300.0,101290.0,0.24440997]
[1746719152585,0.01088806,101300.0,101290.0,0.25990997]
[1746719152871,0.00688806,101300.0,101290.0,0.25790997]
[1746719153121,0.20728417,101310.0,101300.0,0.20728756]
[1746719153355,0.00987001,101310.0,101300.0,0.2171762]
[1746719153613,0.01974031,101310.0,101300.0,0.22704718]
[1746719153856,0.01974031,101310.0,101300.0,0.2171762]
[1746719153857,0.2294925,101310.0,101300.0,0.2171762]
[1746719154120,0.03649623,101320.0,101310.0,0.21715476]
[1746719154325,0.33455744,101320.0,101310.0,0.21715476]
[1746719154579,0.32766938,101320.0,101310.0,0.20728446]
[1746719154833,0.01973982,101310.0,101300.0,0.21717542]
[1746719155063,0.23936318,101310.0,101300.0,0.20730454]
[1746719155277,0.23689526,101310.0,101300.0,0.20730483]
[1746719155505,0.22702525,101310.0,101300.0,0.22704728]
[1746719155731,0.21715505,101310.0,101300.0,0.20730502]
[1746719155960,0.0098702,101310.0,101300.0,0.23691874]
[1746719156187,0.22702447,101310.0,101300.0,0.22704776]
[1746719156396,0.22702447,101310.0,101300.0,0.19743336]
[1746719156602,0.01974206,101300.0,101290.0,0.62721026]
[1746719156834,0.10066692,101310.0,101300.0,0.22704718]
[1746719157043,0.30795109,101310.0,101300.0,0.19743336]
[1746719157245,0.31782168,101310.0,101300.0,0.21717649]
[1746719157466,0.00987118,101300.0,101290.0,0.62351313]
[1746719157680,0.01974216,101300.0,101290.0,0.23338509]
[1746719157917,0.22704689,101300.0,101290.0,0.21564088]
[1746719158119,0.02961412,101300.0,101290.0,0.22551333]
[1746719158400,0.22704748,101300.0,101290.0,0.23538558]
[1746719158635,0.72201694,101300.0,101290.0,0.00214037]
[1746719158835,0.72201694,101300.0,101290.0,0.19959322]
[1746719159029,0.12040879,101300.0,101290.0,0.22033791]
[1746719159220,0.12040879,101300.0,101290.0,0.21046566]
[1746719159221,0.33758567,101300.0,101290.0,0.21046566]
[1746719159423,0.35824268,101300.0,101290.0,0.00214037]
[1746719159573,0.32184341,101300.0,101290.0,0.00214037]
[1746719159778,0.32184341,101300.0,101290.0,0.00014037]
[1746719160227,0.33273598,101300.0,101290.0,0.00114037]
[1746719160666,0.15104477,101300.0,101290.0,0.20746586]
[1746719160876,0.33371458,101300.0,101290.0,0.19759322]
[1746719161068,0.31984331,101300.0,101290.0,0.19759322]
[1746719161274,0.30997194,101300.0,101290.0,0.19759322]
[1746719161661,0.30797194,101300.0,101290.0,0.19759322]
[1746719162062,0.30797194,101300.0,101290.0,0.00014037]
[1746719162353,0.76268395,101300.0,101290.0,0.00014037]
[1746719162562,0.35851052,101300.0,101290.0,0.00014037]
[1746719162768,0.10066692,101300.0,101290.0,0.19759322]
[1746719162889,0.12040937,101300.0,101290.0,0.19759322]
[1746719163090,0.13028094,101300.0,101290.0,0.20746586]
[1746719163340,0.3277143,101300.0,101290.0,0.2173384]
[1746719163515,0.13028094,101300.0,101290.0,0.2173384]
[1746719163696,0.32184322,101300.0,101290.0,0.19859322]
[1746719163893,0.004,101300.0,101290.0,0.21833772]
[1746719164113,0.24676542,101310.0,101300.0,0.20730483]
[1746719164333,0.33756253,101310.0,101300.0,0.20730502]
[1746719164534,0.21717639,101300.0,101290.0,0.00014037]
[1746719164740,0.21917639,101300.0,101290.0,0.19759322]
[1746719164937,0.00987108,101300.0,101290.0,0.21733801]
[1746719165138,0.30795154,101310.0,101300.0,0.19743336]
[1746719165392,0.11253683,101310.0,101300.0,0.2171763]
[1746719165591,0.002,101310.0,101300.0,0.23691855]
[1746719165796,0.02,101320.0,101310.0,0.22702477]
[1746719165967,0.02,101320.0,101310.0,0.35919169]
[1746719166174,0.03973797,101320.0,101310.0,0.21251387]
[1746719166392,0.02,101320.0,101310.0,0.23225466]
[1746719166598,0.03973836,101320.0,101310.0,0.24212476]
[1746719166801,0.03973836,101320.0,101310.0,0.25199477]
[1746719166994,0.02,101320.0,101310.0,0.25199477]
[1746719167453,0.02,101320.0,101310.0,0.35266169]
[1746719167594,0.022,101320.0,101310.0,0.36916169]
[1746719168107,0.02,101320.0,101310.0,0.76916169]
[1746719168869,0.02,101320.0,101310.0,0.76546435]
[1746719168984,0.02,101320.0,101310.0,0.401]
[1746719168985,0.23713352,101320.0,101310.0,0.401]
[1746719169403,0.33780044,101320.0,101310.0,0.59841387]
[1746719169606,0.02986913,101320.0,101310.0,0.62802545]
[1746719169816,0.02,101320.0,101310.0,0.63789546]
[1746719170036,0.02,101320.0,101310.0,0.66959546]
[1746719170246,0.022,101320.0,101310.0,0.76926238]
[1746719170473,0.022,101320.0,101310.0,1.11543546]
[1746719170676,0.02,101320.0,101310.0,1.11543546]
[1746719170894,0.02,101320.0,101310.0,0.77543546]
[1746719171105,0.02,101320.0,101310.0,0.77743546]
[1746719171328,0.04960769,101320.0,101310.0,0.61545764]
[1746719171532,0.23713314,101320.0,101310.0,0.20558695]
[1746719171747,0.24900198,101320.0,101310.0,0.19941387]
[1746719171961,0.03973855,101320.0,101310.0,0.19441387]
[1746719172171,0.02961128,101310.0,101300.0,0.19742695]
[1746719172383,0.01974187,101300.0,101290.0,0.24461026]
[1746719172611,0.00987079,101300.0,101290.0,0.25448242]
[1746719172831,0.02961128,101310.0,101300.0,0.20730493]
[1746719173042,0.21715456,101310.0,101300.0,0.19743336]
[1746719173260,0.12066692,101320.0,101300.0,0.23691817]
[1746719173470,0.02,101320.0,101310.0,0.22702477]
[1746719174102,0.02986894,101320.0,101310.0,0.22702477]
[1746719174325,0.02986894,101320.0,101310.0,0.33854748]
[1746719174326,0.022,101320.0,101310.0,0.33854748]
[1746719174535,0.022,101320.0,101310.0,0.7792144]
[1746719174944,0.022,101320.0,101310.0,0.78538834]
[1746719175154,0.022,101320.0,101310.0,1.18538834]
[1746719175363,0.022,101320.0,101310.0,1.20109666]
[1746719175617,0.022,101320.0,101310.0,1.27563751]
[1746719175829,0.02,101320.0,101310.0,1.27563751]
[1746719176038,0.022,101320.0,101310.0,1.1967148]
[1746719176460,0.002,101330.0,101320.0,0.58154322]
[1746719176675,0.0168,101400.0,101390.0,0.20712062]
[1746719176911,0.0005,101400.0,101390.0,0.23670854]
[1746719177120,0.0005,101400.0,101390.0,0.24288248]
[1746719177751,0.01036105,101400.0,101390.0,0.24288248]
[1746719177962,0.22039869,101400.0,101390.0,0.00617394]
[1746719178185,0.21793318,101400.0,101390.0,0.20343205]
[1746719178392,0.02069453,101400.0,101390.0,0.20343205]
[1746719178602,0.00097116,101400.0,101390.0,0.23301958]
[1746719179035,0.00297116,101400.0,101390.0,0.23301958]
[1746719179242,0.00497116,101400.0,101390.0,0.23301958]
[1746719179478,0.02469355,101400.0,101390.0,0.23301958]
[1746719179690,0.00497116,101400.0,101390.0,0.23301958]
[1746719179888,0.02469355,101400.0,101390.0,0.22315736]
[1746719180120,0.02469336,101400.0,101390.0,0.22315736]
[1746719180337,0.01483221,101400.0,101390.0,0.23301958]
[1746719180661,0.00497116,101400.0,101390.0,0.23301958]
[1746719180871,0.00497116,101400.0,101390.0,0.3654865]
[1746719181068,0.00497116,101400.0,101390.0,0.44440921]
[1746719181508,0.00497116,101400.0,101390.0,0.31996177]
[1746719181708,0.00497116,101400.0,101390.0,0.3396865]
[1746719181924,0.00097116,101400.0,101390.0,0.3396865]
[1746719182502,0.00097116,101400.0,101390.0,0.7396865]
[1746719182682,0.00097116,101400.0,101390.0,0.7426865]
[1746719182893,0.00097116,101400.0,101390.0,0.7466865]
[1746719183094,0.00097116,101400.0,101390.0,1.16762735]
[1746719183976,0.00097116,101400.0,101390.0,6.27762735]
[1746719184200,0.22668903,101460.0,101450.0,0.19714144]